[Event "Early-Titled-Tuesday-Blitz-May-07-2024"]
[Site "Chess.com"]
[Date "2024.05.07"]
[Round "9"]
[White "SpongeBob_03"]
[Black "ChessBliss09"]
[Result "1/2-1/2"]
[WhiteElo "2250"]
[BlackElo "2214"]
[TimeControl "180+1"]
[EndTime "9:50:51 PDT"]
[Termination "Game drawn - insufficient material"]

1. Nf3 {[%clk 0:03:00.9]} 1... d5 {[%clk 0:02:59.1]} 2. c4 {[%clk 0:03:00.2]}
2... c6 {[%clk 0:02:59.1]} 3. cxd5 {[%clk 0:02:58.8]} 3... cxd5 {[%clk
0:02:58.8]} 4. d4 {[%clk 0:02:59.6]} 4... Nc6 {[%clk 0:02:58.7]} 5. e3 {[%clk
0:02:59.8]} 5... Nf6 {[%clk 0:02:59.3]} 6. Nc3 {[%clk 0:03:00.2]} 6... e6 {[%clk
0:02:58.8]} 7. Bb5 {[%clk 0:03:00.7]} 7... a6 {[%clk 0:02:58.2]} 8. Bxc6+ {[%clk
0:03:00.9]} 8... bxc6 {[%clk 0:02:59.1]} 9. Ne5 {[%clk 0:03:01.4]} 9... c5
{[%clk 0:02:55.8]} 10. Qa4+ {[%clk 0:03:01]} 10... Bd7 {[%clk 0:02:55.6]} 11.
Nxd7 {[%clk 0:02:58.3]} 11... Qxd7 {[%clk 0:02:56.3]} 12. Qxd7+ {[%clk
0:02:57.7]} 12... Nxd7 {[%clk 0:02:57.2]} 13. dxc5 {[%clk 0:02:54.9]} 13... Bxc5
{[%clk 0:02:56.6]} 14. Ke2 {[%clk 0:02:55.8]} 14... O-O {[%clk 0:02:54.9]} 15.
a3 {[%clk 0:02:56.2]} 15... Rfc8 {[%clk 0:02:52.3]} 16. b4 {[%clk 0:02:51.7]}
16... Bxb4 {[%clk 0:02:51.2]} 17. Nxd5 {[%clk 0:02:50.1]} 17... Bxa3 {[%clk
0:02:38.6]} 18. Bxa3 {[%clk 0:02:46.3]} 18... exd5 {[%clk 0:02:38.7]} 19. Rhd1
{[%clk 0:02:46]} 19... Nf6 {[%clk 0:02:38.6]} 20. Rd2 {[%clk 0:02:44.6]} 20...
Rc6 {[%clk 0:02:32.6]} 21. Rad1 {[%clk 0:02:44.3]} 21... Rac8 {[%clk 0:02:32.5]}
22. Be7 {[%clk 0:02:42.3]} 22... Ne4 {[%clk 0:02:28.7]} 23. Rxd5 {[%clk
0:02:42]} 23... Nc3+ {[%clk 0:02:28.4]} 24. Kf3 {[%clk 0:02:41.4]} 24... Nxd1
{[%clk 0:02:25.7]} 25. Rxd1 {[%clk 0:02:41.4]} 25... a5 {[%clk 0:02:25.3]} 26.
Ra1 {[%clk 0:02:40.5]} 26... Ra8 {[%clk 0:02:23.7]} 27. Ra4 {[%clk 0:02:40.2]}
27... Re6 {[%clk 0:02:21.7]} 28. Bb4 {[%clk 0:02:37.1]} 28... Re5 {[%clk
0:02:21]} 29. Bc3 {[%clk 0:02:33.4]} 29... Rb5 {[%clk 0:02:19.7]} 30. Ke4 {[%clk
0:02:31.2]} 30... Kf8 {[%clk 0:02:19.1]} 31. Kd3 {[%clk 0:02:27.9]} 31... Ke7
{[%clk 0:02:18.4]} 32. Kc4 {[%clk 0:02:28]} 32... Rh5 {[%clk 0:02:18.4]} 33. h3
{[%clk 0:02:26.8]} 33... Kd6 {[%clk 0:02:16.9]} 34. Bxg7 {[%clk 0:02:25.4]}
34... Rg5 {[%clk 0:02:12.9]} 35. Bc3 {[%clk 0:02:22.9]} 35... Rxg2 {[%clk
0:02:08.2]} 36. Bxa5 {[%clk 0:02:22.8]} 36... Rc8+ {[%clk 0:02:05.5]} 37. Kd4
{[%clk 0:02:21.8]} 37... Rxf2 {[%clk 0:02:02.6]} 38. Bb4+ {[%clk 0:02:22.1]}
38... Kd7 {[%clk 0:02:00.6]} 39. Ra7+ {[%clk 0:02:21.8]} 39... Rc7 {[%clk
0:02:00.6]} 40. Ra6 {[%clk 0:02:20.3]} 40... Rf3 {[%clk 0:01:58.1]} 41. Rd6+
{[%clk 0:02:19.8]} 41... Ke8 {[%clk 0:01:54.5]} 42. Rh6 {[%clk 0:02:19.5]} 42...
Rb7 {[%clk 0:01:45.6]} 43. Bc5 {[%clk 0:02:13.9]} 43... f5 {[%clk 0:01:28]} 44.
Rf6 {[%clk 0:02:11.6]} 44... Rf7 {[%clk 0:01:18]} 45. Ra6 {[%clk 0:02:05]} 45...
Rd7+ {[%clk 0:00:57.5]} 46. Ke5 {[%clk 0:01:59]} 46... Rxh3 {[%clk 0:00:57.3]}
47. Ra8+ {[%clk 0:01:48]} 47... Rd8 {[%clk 0:00:57.1]} 48. Ra7 {[%clk
0:01:47.2]} 48... f4 {[%clk 0:00:44.6]} 49. Re7+ {[%clk 0:01:46.3]} 49... Kf8
{[%clk 0:00:43.8]} 50. Rxh7+ {[%clk 0:01:47.2]} 50... Kg8 {[%clk 0:00:41.8]} 51.
Rxh3 {[%clk 0:01:47.2]} 51... fxe3 {[%clk 0:00:41.9]} 52. Rxe3 {[%clk
0:01:46.4]} 52... Re8+ {[%clk 0:00:41.7]} 53. Kf4 {[%clk 0:01:45.7]} 53... Rxe3
{[%clk 0:00:41.4]} 54. Kxe3 {[%clk 0:01:46.6]} 1/2-1/2

[Event "Early-Titled-Tuesday-Blitz-May-07-2024"]
[Site "Chess.com"]
[Date "2024.05.07"]
[Round "9"]
[White "Kotlyar_K"]
[Black "tantaan"]
[Result "1-0"]
[WhiteElo "2655"]
[BlackElo "2483"]
[TimeControl "180+1"]
[EndTime "9:50:54 PDT"]
[Termination "Kotlyar_K won by resignation"]

1. d4 {[%clk 0:03:00.9]} 1... Nf6 {[%clk 0:02:55.7]} 2. c4 {[%clk 0:02:47.9]}
2... e6 {[%clk 0:02:54.2]} 3. Nc3 {[%clk 0:02:44.2]} 3... Bb4 {[%clk 0:02:52.5]}
4. e3 {[%clk 0:02:42.9]} 4... O-O {[%clk 0:02:48.2]} 5. Bd2 {[%clk 0:02:40.3]}
5... d5 {[%clk 0:02:41.5]} 6. Nf3 {[%clk 0:02:37.9]} 6... Bxc3 {[%clk
0:02:38.5]} 7. Bxc3 {[%clk 0:02:29.9]} 7... Ne4 {[%clk 0:02:38.5]} 8. Rc1 {[%clk
0:02:29.6]} 8... Nxc3 {[%clk 0:02:38.6]} 9. Rxc3 {[%clk 0:02:30.5]} 9... Nd7
{[%clk 0:02:22.7]} 10. Bd3 {[%clk 0:02:15.7]} 10... Nf6 {[%clk 0:02:18.8]} 11.
O-O {[%clk 0:02:11.5]} 11... dxc4 {[%clk 0:02:12.5]} 12. Rxc4 {[%clk 0:02:03.6]}
12... b6 {[%clk 0:02:05.6]} 13. Ne5 {[%clk 0:01:47.4]} 13... c5 {[%clk
0:01:54.6]} 14. dxc5 {[%clk 0:01:26.1]} 14... Qd5 {[%clk 0:01:52.5]} 15. Nf3
{[%clk 0:01:21.6]} 15... bxc5 {[%clk 0:01:44.1]} 16. e4 {[%clk 0:01:21.5]} 16...
Qc6 {[%clk 0:01:31.4]} 17. e5 {[%clk 0:01:18.4]} 17... Nd5 {[%clk 0:01:20.9]}
18. Bxh7+ {[%clk 0:01:10.2]} 18... Kh8 {[%clk 0:01:19.4]} 19. Rh4 {[%clk
0:01:07.3]} 19... Bb7 {[%clk 0:01:02.2]} 20. Be4+ {[%clk 0:01:03.8]} 20... Kg8
{[%clk 0:01:01.3]} 21. Ng5 {[%clk 0:01:04.7]} 21... g6 {[%clk 0:00:47.2]} 22.
Qf3 {[%clk 0:00:57.3]} 22... Qc7 {[%clk 0:00:44.3]} 23. Bxd5 {[%clk 0:00:45.5]}
23... Qxe5 {[%clk 0:00:42]} 24. Bxb7 {[%clk 0:00:45.1]} 24... Qxg5 {[%clk
0:00:40.2]} 25. Rg4 {[%clk 0:00:44.1]} 1-0

[Event "Early-Titled-Tuesday-Blitz-May-07-2024"]
[Site "Chess.com"]
[Date "2024.05.07"]
[Round "9"]
[White "hsd2016"]
[Black "abelmat"]
[Result "1-0"]
[WhiteElo "2326"]
[BlackElo "2022"]
[TimeControl "180+1"]
[EndTime "9:51:00 PDT"]
[Termination "hsd2016 won on time"]

1. d4 {[%clk 0:03:00.9]} 1... e6 {[%clk 0:02:59.7]} 2. c4 {[%clk 0:03:01.2]}
2... d5 {[%clk 0:03:00.5]} 3. Nc3 {[%clk 0:03:01.5]} 3... Nf6 {[%clk 0:02:59.1]}
4. Nf3 {[%clk 0:03:01.7]} 4... Be7 {[%clk 0:02:59.4]} 5. e3 {[%clk 0:03:02.2]}
5... Nbd7 {[%clk 0:02:59.7]} 6. Bd3 {[%clk 0:03:02.7]} 6... O-O {[%clk 0:02:59]}
7. O-O {[%clk 0:03:02.8]} 7... a6 {[%clk 0:02:59.3]} 8. b3 {[%clk 0:03:02.9]}
8... b6 {[%clk 0:02:55.8]} 9. Bb2 {[%clk 0:03:03.1]} 9... Bb7 {[%clk 0:02:56.1]}
10. Rc1 {[%clk 0:03:03.1]} 10... c5 {[%clk 0:02:56.2]} 11. Qe2 {[%clk
0:03:02.1]} 11... Ne4 {[%clk 0:02:55.6]} 12. cxd5 {[%clk 0:02:56.5]} 12... exd5
{[%clk 0:02:54.7]} 13. Bxe4 {[%clk 0:02:53.4]} 13... dxe4 {[%clk 0:02:53.9]} 14.
Nd2 {[%clk 0:02:54]} 14... f5 {[%clk 0:02:53.7]} 15. Rfd1 {[%clk 0:02:52.7]}
15... Qe8 {[%clk 0:02:48]} 16. Nc4 {[%clk 0:02:47.4]} 16... cxd4 {[%clk
0:02:30.9]} 17. Rxd4 {[%clk 0:02:44]} 17... Bc5 {[%clk 0:01:51.4]} 18. Nd6
{[%clk 0:02:42]} 18... Qb8 {[%clk 0:01:39.2]} 19. Qc4+ {[%clk 0:02:33.4]} 19...
Kh8 {[%clk 0:01:32.3]} 20. Nf7+ {[%clk 0:02:02.5]} 20... Rxf7 {[%clk 0:01:27.5]}
21. Qxf7 {[%clk 0:02:03.4]} 21... Bxd4 {[%clk 0:01:24.3]} 22. exd4 {[%clk
0:02:04.3]} 22... Nf6 {[%clk 0:00:57.8]} 23. d5 {[%clk 0:02:00.8]} 23... Ng4
{[%clk 0:00:48.4]} 24. g3 {[%clk 0:01:56.2]} 24... Nh6 {[%clk 0:00:39.3]} 25.
Qe7 {[%clk 0:01:50.8]} 25... Ng8 {[%clk 0:00:28.8]} 26. Qg5 {[%clk 0:01:48.1]}
26... Qe5 {[%clk 0:00:16.9]} 27. Na4 {[%clk 0:01:47]} 27... Qe7 {[%clk
0:00:14.3]} 28. Qxe7 {[%clk 0:01:43.7]} 28... Nxe7 {[%clk 0:00:13.7]} 29. Rc7
{[%clk 0:01:44.6]} 29... Bxd5 {[%clk 0:00:06.9]} 30. Rxe7 {[%clk 0:01:44.8]}
30... Rc8 {[%clk 0:00:06.5]} 31. Nxb6 {[%clk 0:01:44.4]} 31... Rc2 {[%clk
0:00:05]} 32. Re8+ {[%clk 0:01:44.4]} 32... Bg8 {[%clk 0:00:04.6]} 33. Be5
{[%clk 0:01:43.9]} 33... Rxa2 {[%clk 0:00:02.9]} 34. Re7 {[%clk 0:01:44.1]} 1-0

[Event "Early-Titled-Tuesday-Blitz-May-07-2024"]
[Site "Chess.com"]
[Date "2024.05.07"]
[Round "9"]
[White "stollenmonster"]
[Black "TenisMaster"]
[Result "1-0"]
[WhiteElo "2930"]
[BlackElo "2874"]
[TimeControl "180+1"]
[EndTime "9:51:03 PDT"]
[Termination "stollenmonster won on time"]

1. e4 {[%clk 0:03:00.9]} 1... e5 {[%clk 0:02:59.8]} 2. Nc3 {[%clk 0:03:00.6]}
2... Nf6 {[%clk 0:02:56.6]} 3. g3 {[%clk 0:03:00.7]} 3... d5 {[%clk 0:02:52.8]}
4. exd5 {[%clk 0:03:01.6]} 4... Nxd5 {[%clk 0:02:53]} 5. Bg2 {[%clk 0:03:02.3]}
5... Nxc3 {[%clk 0:02:52.7]} 6. bxc3 {[%clk 0:03:03.2]} 6... Bd6 {[%clk
0:02:50.9]} 7. d3 {[%clk 0:03:03.4]} 7... O-O {[%clk 0:02:50.3]} 8. Ne2 {[%clk
0:03:04.1]} 8... Nc6 {[%clk 0:02:45.4]} 9. Rb1 {[%clk 0:03:03.5]} 9... Re8
{[%clk 0:02:38.1]} 10. O-O {[%clk 0:03:03.1]} 10... h6 {[%clk 0:02:37.7]} 11. h3
{[%clk 0:03:03.3]} 11... Na5 {[%clk 0:02:32.1]} 12. f4 {[%clk 0:03:00.2]} 12...
Bd7 {[%clk 0:02:21.7]} 13. f5 {[%clk 0:02:58.9]} 13... Be7 {[%clk 0:02:15.8]}
14. g4 {[%clk 0:02:58.6]} 14... Bc6 {[%clk 0:02:15.8]} 15. Ng3 {[%clk
0:02:58.4]} 15... Bxg2 {[%clk 0:02:04]} 16. Kxg2 {[%clk 0:02:59.3]} 16... b6
{[%clk 0:02:04.1]} 17. Ne4 {[%clk 0:02:48.5]} 17... Nb7 {[%clk 0:01:52.4]} 18.
f6 {[%clk 0:02:45.2]} 18... Bxf6 {[%clk 0:01:52.4]} 19. Bxh6 {[%clk 0:02:24.6]}
19... Be7 {[%clk 0:01:46.4]} 20. Qf3 {[%clk 0:02:20.9]} 20... Rf8 {[%clk
0:01:43.3]} 21. g5 {[%clk 0:01:41.1]} 21... gxh6 {[%clk 0:01:30.2]} 22. Qh5
{[%clk 0:01:37.9]} 22... Bxg5 {[%clk 0:01:12.7]} 23. Rf5 {[%clk 0:01:37.7]}
23... Bf4 {[%clk 0:00:18.1]} 24. Rg1 {[%clk 0:01:20.1]} 24... Kh7 {[%clk
0:00:05.5]} 25. Nf6+ {[%clk 0:01:19]} 25... Kg7 {[%clk 0:00:03.4]} 26. Kf3+
{[%clk 0:01:11.8]} 26... Kh8 {[%clk 0:00:00.4]} 27. Rxf4 {[%clk 0:01:10.8]} 1-0

[Event "Early-Titled-Tuesday-Blitz-May-07-2024"]
[Site "Chess.com"]
[Date "2024.05.07"]
[Round "9"]
[White "Sokoloco"]
[Black "mind1mover"]
[Result "0-1"]
[WhiteElo "2801"]
[BlackElo "2907"]
[TimeControl "180+1"]
[EndTime "9:51:03 PDT"]
[Termination "mind1mover won by checkmate"]

1. g3 {[%clk 0:03:00.9]} 1... e5 {[%clk 0:02:56.6]} 2. c4 {[%clk 0:03:00.7]}
2... d6 {[%clk 0:02:54.9]} 3. Bg2 {[%clk 0:03:00.5]} 3... f5 {[%clk 0:02:55.6]}
4. d3 {[%clk 0:02:49.4]} 4... Nf6 {[%clk 0:02:54.7]} 5. Nf3 {[%clk 0:02:49.9]}
5... Be7 {[%clk 0:02:55]} 6. O-O {[%clk 0:02:50.4]} 6... O-O {[%clk 0:02:55.3]}
7. Nc3 {[%clk 0:02:50.5]} 7... Nc6 {[%clk 0:02:53.1]} 8. a3 {[%clk 0:02:49.2]}
8... Qe8 {[%clk 0:02:52.1]} 9. b4 {[%clk 0:02:49.1]} 9... Nd8 {[%clk 0:02:48.8]}
10. b5 {[%clk 0:02:46.6]} 10... Qh5 {[%clk 0:02:45.6]} 11. e3 {[%clk 0:02:40.1]}
11... f4 {[%clk 0:02:33]} 12. exf4 {[%clk 0:02:26]} 12... Bg4 {[%clk 0:02:32]}
13. fxe5 {[%clk 0:01:59.7]} 13... Nd7 {[%clk 0:02:30.1]} 14. exd6 {[%clk
0:00:41.9]} 14... Bxd6 {[%clk 0:02:29.6]} 15. Bf4 {[%clk 0:00:42.5]} 15... Bxf4
{[%clk 0:02:27.6]} 16. h3 {[%clk 0:00:43.1]} 16... Bxh3 {[%clk 0:02:03.3]} 17.
gxf4 {[%clk 0:00:43.8]} 17... Rxf4 {[%clk 0:01:49.4]} 18. Ne4 {[%clk 0:00:14]}
18... Bxg2 {[%clk 0:01:37.5]} 19. Kxg2 {[%clk 0:00:14.9]} 19... Ne6 {[%clk
0:01:38.1]} 20. Ng3 {[%clk 0:00:11.5]} 20... Qg6 {[%clk 0:01:34.7]} 21. Re1
{[%clk 0:00:10.7]} 21... Raf8 {[%clk 0:01:34.2]} 22. Re3 {[%clk 0:00:11.3]}
22... Ng5 {[%clk 0:01:28.2]} 23. Nxg5 {[%clk 0:00:10]} 23... Rxf2+ {[%clk
0:01:28.4]} 24. Kh3 {[%clk 0:00:04.2]} 24... Qxg5 {[%clk 0:01:29.3]} 25. Re4
{[%clk 0:00:02.3]} 25... R8f4 {[%clk 0:01:27]} 26. Qh5 {[%clk 0:00:01.7]} 26...
Qf6 {[%clk 0:01:15.8]} 27. Re8+ {[%clk 0:00:02]} 27... Nf8 {[%clk 0:01:16.2]}
28. Ne4 {[%clk 0:00:02.9]} 28... R4f3+ {[%clk 0:01:14.6]} 29. Kg4 {[%clk
0:00:01.7]} 29... Qf4# {[%clk 0:01:14.7]} 0-1

[Event "Early-Titled-Tuesday-Blitz-May-07-2024"]
[Site "Chess.com"]
[Date "2024.05.07"]
[Round "9"]
[White "Heinza9"]
[Black "MikeWizard"]
[Result "1-0"]
[WhiteElo "2343"]
[BlackElo "2049"]
[TimeControl "180+1"]
[EndTime "9:51:06 PDT"]
[Termination "Heinza9 won by checkmate"]

1. e4 {[%clk 0:03:00.9]} 1... d6 {[%clk 0:02:35]} 2. d4 {[%clk 0:03:00]} 2...
Nf6 {[%clk 0:02:34.3]} 3. Nc3 {[%clk 0:02:59.9]} 3... Nbd7 {[%clk 0:02:34.4]} 4.
f4 {[%clk 0:02:58.7]} 4... e5 {[%clk 0:02:33.7]} 5. Nf3 {[%clk 0:02:57.7]} 5...
exd4 {[%clk 0:02:32.9]} 6. Nxd4 {[%clk 0:02:56.5]} 6... Be7 {[%clk 0:02:33.1]}
7. Bd3 {[%clk 0:02:48.8]} 7... c6 {[%clk 0:02:33.2]} 8. Be3 {[%clk 0:02:46.6]}
8... Nc5 {[%clk 0:02:29.9]} 9. h3 {[%clk 0:02:44]} 9... Nxd3+ {[%clk 0:02:20.7]}
10. Qxd3 {[%clk 0:02:40.9]} 10... Qa5 {[%clk 0:02:18.5]} 11. O-O {[%clk
0:02:38.8]} 11... O-O {[%clk 0:02:16.3]} 12. a3 {[%clk 0:02:37.8]} 12... Qc7
{[%clk 0:02:03.6]} 13. Rae1 {[%clk 0:02:33]} 13... b5 {[%clk 0:01:57.2]} 14. Nf3
{[%clk 0:02:25.9]} 14... a6 {[%clk 0:01:54.7]} 15. e5 {[%clk 0:02:22.8]} 15...
dxe5 {[%clk 0:01:53.5]} 16. fxe5 {[%clk 0:02:20.5]} 16... Nd5 {[%clk 0:01:52.4]}
17. Nxd5 {[%clk 0:02:18.1]} 17... cxd5 {[%clk 0:01:52.5]} 18. c3 {[%clk
0:02:15.1]} 18... Bb7 {[%clk 0:01:51.6]} 19. Bd4 {[%clk 0:02:14.8]} 19... Bc5
{[%clk 0:01:48.6]} 20. Ng5 {[%clk 0:02:14.5]} 20... g6 {[%clk 0:01:40.9]} 21.
Qg3 {[%clk 0:02:09.3]} 21... Bxd4+ {[%clk 0:01:39.5]} 22. cxd4 {[%clk
0:02:08.8]} 22... h6 {[%clk 0:01:29.5]} 23. Nf3 {[%clk 0:01:41.7]} 23... Kg7
{[%clk 0:01:29.1]} 24. h4 {[%clk 0:01:39.1]} 24... h5 {[%clk 0:01:22.1]} 25. Qf4
{[%clk 0:01:34]} 25... Qe7 {[%clk 0:01:17.3]} 26. Ng5 {[%clk 0:01:30.8]} 26...
Bc8 {[%clk 0:01:16.7]} 27. e6 {[%clk 0:01:28]} 27... Bxe6 {[%clk 0:01:16.4]} 28.
Qe5+ {[%clk 0:01:26.2]} 28... Kg8 {[%clk 0:01:09.1]} 29. Rf6 {[%clk 0:01:23.9]}
29... Qe8 {[%clk 0:00:48.7]} 30. Nxe6 {[%clk 0:01:18.6]} 30... fxe6 {[%clk
0:00:47.5]} 31. Rxe6 {[%clk 0:01:18.7]} 31... Qf7 {[%clk 0:00:45.3]} 32. Qg5
{[%clk 0:01:05.4]} 32... Qf2+ {[%clk 0:00:32.4]} 33. Kh1 {[%clk 0:01:05.2]}
33... Rf5 {[%clk 0:00:25.1]} 34. Rxg6+ {[%clk 0:01:01.9]} 34... Kf7 {[%clk
0:00:22.7]} 35. Rg7+ {[%clk 0:01:01.6]} 35... Kf8 {[%clk 0:00:22.7]} 36. Qe7#
{[%clk 0:01:01.7]} 1-0

[Event "Early-Titled-Tuesday-Blitz-May-07-2024"]
[Site "Chess.com"]
[Date "2024.05.07"]
[Round "9"]
[White "Yan_Dyomin2010"]
[Black "IMchanged"]
[Result "0-1"]
[WhiteElo "2610"]
[BlackElo "2768"]
[TimeControl "180+1"]
[EndTime "9:51:18 PDT"]
[Termination "IMchanged won by checkmate"]

1. e4 {[%clk 0:03:00.9]} 1... c5 {[%clk 0:02:56.8]} 2. Nf3 {[%clk 0:02:59.7]}
2... d6 {[%clk 0:02:57.1]} 3. d4 {[%clk 0:02:59.8]} 3... cxd4 {[%clk 0:02:57.7]}
4. Qxd4 {[%clk 0:03:00.7]} 4... Nc6 {[%clk 0:02:56]} 5. Bb5 {[%clk 0:03:01.3]}
5... Bd7 {[%clk 0:02:56.1]} 6. Bxc6 {[%clk 0:03:01.7]} 6... Bxc6 {[%clk
0:02:57]} 7. Nc3 {[%clk 0:03:02.1]} 7... Nf6 {[%clk 0:02:57.3]} 8. Bg5 {[%clk
0:03:02.7]} 8... e6 {[%clk 0:02:57.7]} 9. O-O-O {[%clk 0:03:02.9]} 9... Be7
{[%clk 0:02:58]} 10. Rhe1 {[%clk 0:03:03.1]} 10... O-O {[%clk 0:02:55]} 11. Kb1
{[%clk 0:03:03.6]} 11... Qa5 {[%clk 0:02:52.1]} 12. Qd2 {[%clk 0:03:03.1]} 12...
h6 {[%clk 0:02:50]} 13. Bh4 {[%clk 0:02:30.2]} 13... Rfc8 {[%clk 0:02:35.3]} 14.
Nd4 {[%clk 0:02:29.5]} 14... Qb6 {[%clk 0:02:08.8]} 15. f3 {[%clk 0:02:26.8]}
15... d5 {[%clk 0:01:53.7]} 16. e5 {[%clk 0:02:25.1]} 16... Ba3 {[%clk
0:01:53.2]} 17. Nb3 {[%clk 0:02:19.4]} 17... Nd7 {[%clk 0:01:38.2]} 18. bxa3
{[%clk 0:02:18.8]} 18... a5 {[%clk 0:01:39]} 19. Qd4 {[%clk 0:02:12.3]} 19...
Qa6 {[%clk 0:01:35.8]} 20. Qd3 {[%clk 0:02:01.3]} 20... Qb6 {[%clk 0:01:32.3]}
21. Ka1 {[%clk 0:01:46.8]} 21... a4 {[%clk 0:01:31.9]} 22. Nd4 {[%clk
0:01:43.1]} 22... Nc5 {[%clk 0:01:27.8]} 23. Qe3 {[%clk 0:01:42.4]} 23... Qa5
{[%clk 0:01:26.7]} 24. Rb1 {[%clk 0:01:36.6]} 24... Be8 {[%clk 0:01:24.8]} 25.
Rb4 {[%clk 0:01:36.1]} 25... Na6 {[%clk 0:01:23.9]} 26. Reb1 {[%clk 0:01:32.9]}
26... Nxb4 {[%clk 0:01:23.6]} 27. Rxb4 {[%clk 0:01:31]} 27... Rc7 {[%clk
0:01:21.5]} 28. Be1 {[%clk 0:01:30.2]} 28... Qa6 {[%clk 0:01:21]} 29. Qd3 {[%clk
0:01:29.3]} 29... Rc4 {[%clk 0:01:13.7]} 30. Rxc4 {[%clk 0:01:20.3]} 30... dxc4
{[%clk 0:01:14.6]} 31. Qe3 {[%clk 0:01:16]} 31... Rd8 {[%clk 0:01:11.1]} 32.
Nde2 {[%clk 0:01:16.4]} 32... Qa5 {[%clk 0:01:05.3]} 33. Bf2 {[%clk 0:01:15.5]}
33... Rc8 {[%clk 0:00:58.7]} 34. Qb6 {[%clk 0:01:14.9]} 34... Qxe5 {[%clk
0:00:58.3]} 35. Qxb7 {[%clk 0:01:11.8]} 35... Rd8 {[%clk 0:00:58.7]} 36. Qe4
{[%clk 0:01:09.2]} 36... Rd1+ {[%clk 0:00:56.7]} 37. Kb2 {[%clk 0:01:09.7]}
37... Qb8+ {[%clk 0:00:56.4]} 38. Nb5 {[%clk 0:01:07.3]} 38... Qxb5+ {[%clk
0:00:51.7]} 39. Kc3 {[%clk 0:01:07.8]} 39... Qb1 {[%clk 0:00:40.8]} 40. Qa8
{[%clk 0:01:00.6]} 40... Qa1+ {[%clk 0:00:37.1]} 41. Kb4 {[%clk 0:01:01]} 41...
Qb2+ {[%clk 0:00:35.6]} 42. Ka5 {[%clk 0:01:01.4]} 42... Qb5# {[%clk 0:00:33.9]}
0-1

[Event "Early-Titled-Tuesday-Blitz-May-07-2024"]
[Site "Chess.com"]
[Date "2024.05.07"]
[Round "9"]
[White "Baku_Boulevard"]
[Black "kpio91"]
[Result "1/2-1/2"]
[WhiteElo "3010"]
[BlackElo "2876"]
[TimeControl "180+1"]
[EndTime "9:51:22 PDT"]
[Termination "Game drawn by agreement"]

1. e4 {[%clk 0:03:00.9]} 1... e5 {[%clk 0:02:58.8]} 2. Nf3 {[%clk 0:02:59.9]}
2... Nc6 {[%clk 0:02:58.8]} 3. Bb5 {[%clk 0:02:59.4]} 3... Nf6 {[%clk
0:02:58.3]} 4. Qe2 {[%clk 0:02:57.5]} 4... d6 {[%clk 0:02:48.4]} 5. c3 {[%clk
0:02:57.1]} 5... Bd7 {[%clk 0:02:48]} 6. d4 {[%clk 0:02:57.2]} 6... Be7 {[%clk
0:02:41.8]} 7. Nbd2 {[%clk 0:02:55.9]} 7... exd4 {[%clk 0:02:15.3]} 8. cxd4
{[%clk 0:02:55.7]} 8... O-O {[%clk 0:02:16]} 9. O-O {[%clk 0:02:55.2]} 9... Bg4
{[%clk 0:02:09.2]} 10. Qd3 {[%clk 0:02:45.9]} 10... a6 {[%clk 0:02:06.5]} 11.
Bxc6 {[%clk 0:02:36.8]} 11... bxc6 {[%clk 0:02:06.2]} 12. h3 {[%clk 0:02:35]}
12... Bh5 {[%clk 0:02:05]} 13. Re1 {[%clk 0:02:32.2]} 13... Bg6 {[%clk
0:02:04.6]} 14. Nh4 {[%clk 0:02:08.6]} 14... Nd7 {[%clk 0:01:21.5]} 15. Nxg6
{[%clk 0:02:06.9]} 15... hxg6 {[%clk 0:01:22.4]} 16. Nf3 {[%clk 0:02:06.8]}
16... Re8 {[%clk 0:01:21.3]} 17. Bd2 {[%clk 0:02:05]} 17... c5 {[%clk
0:01:20.1]} 18. Rac1 {[%clk 0:02:03]} 18... Bf6 {[%clk 0:01:18.9]} 19. e5 {[%clk
0:01:38.7]} 19... dxe5 {[%clk 0:01:17]} 20. dxc5 {[%clk 0:01:38.3]} 20... Nxc5
{[%clk 0:00:57.3]} 21. Qxd8 {[%clk 0:01:35.2]} 21... Raxd8 {[%clk 0:00:57.1]}
22. Rxc5 {[%clk 0:01:35.8]} 22... e4 {[%clk 0:00:57.4]} 23. Bc3 {[%clk
0:00:32.7]} 23... exf3 {[%clk 0:00:51.3]} 24. Rxe8+ {[%clk 0:00:32.3]} 24...
Rxe8 {[%clk 0:00:51.5]} 25. Rxc7 {[%clk 0:00:30.8]} 25... Bxc3 {[%clk
0:00:43.6]} 26. Rxc3 {[%clk 0:00:31.7]} 26... Re1+ {[%clk 0:00:42.8]} 27. Kh2
{[%clk 0:00:31.1]} 27... Re2 {[%clk 0:00:43.5]} 28. Rxf3 {[%clk 0:00:30.4]}
28... Rxb2 {[%clk 0:00:43.4]} 29. Ra3 {[%clk 0:00:30.9]} 29... Rxf2 {[%clk
0:00:38.6]} 30. Rxa6 {[%clk 0:00:30.7]} 30... g5 {[%clk 0:00:38]} 1/2-1/2

[Event "Early-Titled-Tuesday-Blitz-May-07-2024"]
[Site "Chess.com"]
[Date "2024.05.07"]
[Round "9"]
[White "Szparu"]
[Black "Juicy_Fork"]
[Result "1-0"]
[WhiteElo "2924"]
[BlackElo "2462"]
[TimeControl "180+1"]
[EndTime "9:51:23 PDT"]
[Termination "Szparu won on time"]

1. d4 {[%clk 0:03:00.9]} 1... Nf6 {[%clk 0:02:58.2]} 2. c4 {[%clk 0:03:01.1]}
2... e6 {[%clk 0:02:57.1]} 3. Nf3 {[%clk 0:03:01.6]} 3... d5 {[%clk 0:02:53.4]}
4. g3 {[%clk 0:03:01.7]} 4... Bb4+ {[%clk 0:02:50.1]} 5. Nc3 {[%clk 0:03:01.9]}
5... O-O {[%clk 0:02:44]} 6. Bg2 {[%clk 0:03:02.5]} 6... dxc4 {[%clk 0:02:35.6]}
7. a3 {[%clk 0:03:03.1]} 7... Bxc3+ {[%clk 0:02:34.3]} 8. bxc3 {[%clk 0:03:04]}
8... c6 {[%clk 0:02:32.1]} 9. Ne5 {[%clk 0:03:02.1]} 9... Nd5 {[%clk 0:02:25.1]}
10. Qc2 {[%clk 0:03:02.7]} 10... b5 {[%clk 0:02:19]} 11. a4 {[%clk 0:03:03.1]}
11... a5 {[%clk 0:02:12.8]} 12. h4 {[%clk 0:02:58.9]} 12... b4 {[%clk
0:01:59.4]} 13. cxb4 {[%clk 0:02:53.5]} 13... Nxb4 {[%clk 0:01:58.9]} 14. Qxc4
{[%clk 0:02:49.7]} 14... Ba6 {[%clk 0:01:52.1]} 15. Qc3 {[%clk 0:02:41.9]} 15...
Qxd4 {[%clk 0:01:49.2]} 16. Ra3 {[%clk 0:02:42.5]} 16... Qxc3+ {[%clk
0:01:39.2]} 17. Rxc3 {[%clk 0:02:41.7]} 17... f6 {[%clk 0:01:39.8]} 18. Nf3
{[%clk 0:02:18.7]} 18... Nd7 {[%clk 0:01:32.3]} 19. Nd4 {[%clk 0:02:15.9]} 19...
Rac8 {[%clk 0:01:22.5]} 20. Be3 {[%clk 0:02:11.6]} 20... Rfe8 {[%clk 0:01:01.7]}
21. Nb3 {[%clk 0:02:11.5]} 21... Nd5 {[%clk 0:00:58.9]} 22. Rc2 {[%clk
0:02:05.7]} 22... Rb8 {[%clk 0:00:53.6]} 23. Nxa5 {[%clk 0:02:03.7]} 23... Ne5
{[%clk 0:00:41.3]} 24. Bd4 {[%clk 0:02:00.4]} 24... Nb4 {[%clk 0:00:13.4]} 25.
Rc1 {[%clk 0:01:54.5]} 25... Na2 {[%clk 0:00:06.8]} 26. Rd1 {[%clk 0:01:21]}
26... Nc4 {[%clk 0:00:03.6]} 27. Nxc6 {[%clk 0:01:19.4]} 27... Rb3 {[%clk
0:00:03.4]} 28. O-O {[%clk 0:01:17.3]} 28... Nc3 {[%clk 0:00:03.6]} 29. Bxc3
{[%clk 0:01:10.1]} 29... Rxc3 {[%clk 0:00:04.5]} 30. Rc1 {[%clk 0:01:10.8]}
30... Rxc1 {[%clk 0:00:03.7]} 31. Rxc1 {[%clk 0:01:11.7]} 31... Nb2 {[%clk
0:00:04.2]} 32. a5 {[%clk 0:01:10.9]} 32... Bxe2 {[%clk 0:00:03.7]} 33. Rc2
{[%clk 0:01:11.2]} 33... Na4 {[%clk 0:00:01.2]} 34. Rxe2 {[%clk 0:01:11.4]} 1-0